bitfinex-derivatives/quotes_BTCF0:USTF0_20241116
["timestamp","ask_amount","ask_price","bid_price","bid_amount"]
[1731774983878,0.16018568,90773.0,90772.0,0.01032806]
[1731774984074,0.16018568,90773.0,90772.0,0.27095179]
[1731774984580,0.41644901,90786.0,90773.0,0.055057]
[1731774984581,0.09052,90784.0,90773.0,0.055057]
[1731774984782,0.09052,90784.0,90783.0,0.415851]
[1731774985079,0.14557,90784.0,90783.0,0.415851]
[1731774985477,0.14557,90784.0,90783.0,0.3608]
[1731774985884,0.14557,90784.0,90783.0,0.62138704]
[1731774986097,0.14557,90784.0,90779.0,0.26062676]
[1731774986098,0.055052,90781.0,90779.0,0.26062676]
[1731774986382,0.10512868,90780.0,90775.0,0.26062676]
[1731774986587,0.055056,90775.0,90774.0,0.26062676]
[1731774986790,0.055056,90775.0,90769.0,0.36136]
[1731774986791,0.055057,90773.0,90772.0,0.26062676]
[1731774986979,0.055059,90770.0,90769.0,0.3608]
[1731774987186,0.055059,90770.0,90769.0,0.3711273]
[1731774987380,0.09052,90773.0,90769.0,0.3711273]
[1731774987688,0.055058,90771.0,90770.0,0.0103273]
[1731774991196,0.145578,90771.0,90769.0,0.36144]
[1731774991386,0.145578,90771.0,90770.0,0.0103283]
[1731774991697,0.19025527,90771.0,90770.0,0.0103283]
[1731774992089,0.19025527,90771.0,90769.0,0.3608]
[1731774993386,0.19025527,90771.0,90770.0,0.01032833]
[1731774993585,0.19025527,90771.0,90769.0,0.3608]
[1731774993790,0.19025527,90771.0,90770.0,0.01032817]
[1731774993995,0.19025527,90771.0,90769.0,0.3608]
[1731774994187,0.19025527,90771.0,90770.0,0.01032822]
[1731774994387,0.13519727,90771.0,90770.0,0.055059]
[1731774994594,0.02203453,90775.0,90774.0,0.055057]
[1731774994896,0.02203453,90775.0,90774.0,0.35030019]
[1731774996904,0.02203453,90775.0,90774.0,0.35773578]
[1731774997199,0.02203453,90775.0,90774.0,0.35737154]
[1731774997389,0.02203453,90775.0,90774.0,0.34704493]
[1731774998898,0.20118676,90776.0,90774.0,0.74576678]
[1731774999094,0.20118676,90776.0,90775.0,0.30231454]
[1731774999398,0.20118676,90776.0,90775.0,0.35737054]
[1731775001496,0.22321647,90776.0,90775.0,0.35737054]
[1731775005590,0.22321647,90776.0,90775.0,0.71817054]
[1731775006491,0.22321647,90776.0,90775.0,0.7181445]
[1731775007093,0.27827147,90776.0,90775.0,0.7181445]
[1731775008096,0.27827147,90776.0,90775.0,0.42618261]
[1731775010700,0.27827147,90776.0,90775.0,0.37112661]
[1731775010903,0.38340015,90776.0,90775.0,0.01032661]
[1731775011096,0.32834515,90776.0,90771.0,0.26107376]
[1731775011300,0.32834515,90776.0,90769.0,0.3608]
[1731775011301,0.055059,90770.0,90769.0,0.62187376]
[1731775011510,0.055059,90770.0,90769.0,0.3608]
[1731775012197,0.055059,90770.0,90769.0,0.62187376]
[1731775012507,0.055059,90770.0,90769.0,0.3608]
[1731775015598,0.055059,90770.0,90769.0,0.62187376]
[1731775016903,0.17262164,90776.0,90769.0,0.47096916]
[1731775017108,0.055057,90773.0,90772.0,0.32626875]
[1731775017305,0.055058,90772.0,90769.0,0.9150244]
[1731775017608,0.055059,90771.0,90769.0,0.41586]
[1731775017803,0.055059,90771.0,90770.0,0.11016552]
[1731775018003,0.17262164,90776.0,90770.0,0.11016552]
[1731775018203,0.17262164,90776.0,90774.0,0.32632094]
[1731775019001,0.055057,90774.0,90769.0,0.80737415]
[1731775019205,0.055058,90773.0,90769.0,0.80801415]
[1731775019420,0.17262164,90776.0,90770.0,0.11016248]
[1731775019421,0.055058,90771.0,90770.0,0.11016248]
[1731775021308,0.10512868,90784.0,90770.0,0.12048949]
[1731775021508,0.055052,90782.0,90781.0,0.32620141]
[1731775021713,0.055052,90782.0,90781.0,0.37112701]
[1731775022709,0.055052,90782.0,90781.0,0.3608]
[1731775022915,0.055052,90782.0,90781.0,0.68682311]
[1731775023649,0.055047,90790.0,90782.0,0.055052]
[1731775023801,0.09044,90803.0,90789.0,0.3608]
[1731775024002,0.055041,90799.0,90793.0,0.74177062]
[1731775024307,0.055041,90799.0,90793.0,0.74509734]
[1731775024608,0.004,90799.0,90798.0,0.055042]
[1731775024915,0.004,90803.0,90800.0,0.055041]
[1731775025121,0.004,90803.0,90801.0,0.00344162]
[1731775025320,0.10412859,90803.0,90802.0,0.00344162]
[1731775026208,0.10412859,90803.0,90802.0,0.11907791]
[1731775026410,0.10412859,90803.0,90802.0,0.12940263]
[1731775026999,0.10412859,90803.0,90802.0,0.00550656]
[1731775027000,0.20925727,90803.0,90802.0,0.00550656]
[1731775027205,0.20925727,90803.0,90786.0,0.3608]
[1731775027206,0.53965727,90803.0,90786.0,0.3608]
[1731775027401,0.53965727,90803.0,90782.0,0.26572319]
[1731775027402,0.055051,90783.0,90782.0,0.0051]
[1731775027606,0.16017968,90783.0,90782.0,0.01032645]
[1731775030915,0.055053,90780.0,90779.0,0.00165208]
[1731775031411,0.055053,90780.0,90779.0,0.01197962]
[1731775032819,0.055053,90780.0,90779.0,0.00165208]
[1731775033021,0.055051,90784.0,90781.0,0.055052]
[1731775033205,0.055051,90784.0,90782.0,0.26065904]
[1731775033402,0.055051,90784.0,90781.0,0.055052]
[1731775033403,0.055052,90782.0,90781.0,0.26065904]
[1731775033614,0.055053,90780.0,90779.0,0.00165208]
[1731775033917,0.055053,90780.0,90779.0,0.01197839]
[1731775034218,0.055053,90780.0,90779.0,0.12213117]
[1731775034416,0.10512868,90784.0,90779.0,0.12213117]
[1731775034617,0.10512868,90784.0,90781.0,0.055052]
[1731775034803,0.10512868,90784.0,90782.0,0.01032631]
[1731775035116,0.16017868,90784.0,90783.0,0.01032641]
[1731775035317,0.16017868,90784.0,90783.0,0.38102687]
[1731775035518,0.16017868,90784.0,90783.0,0.27086985]
[1731775036021,0.16017868,90784.0,90783.0,0.38102202]
[1731775036223,0.16017868,90784.0,90783.0,0.12047858]
[1731775036619,0.16017868,90784.0,90783.0,0.38102202]
[1731775037121,0.16017868,90784.0,90783.0,0.12047858]
[1731775037821,0.16017868,90784.0,90783.0,0.01032641]
[1731775038420,0.20464227,90784.0,90783.0,0.01032641]
[1731775038927,0.055055,90777.0,90775.0,0.26054344]
[1731775039306,0.055055,90777.0,90770.0,0.32574034]
[1731775039307,0.055056,90775.0,90773.0,0.26054344]
[1731775039614,0.055058,90772.0,90771.0,0.26054344]
[1731775039817,0.16018668,90772.0,90771.0,0.00344281]
[1731775041013,0.16018668,90772.0,90771.0,0.00344282]
[1731775042418,0.16018668,90772.0,90771.0,0.00895133]
[1731775042607,0.20519905,90772.0,90771.0,0.00895133]
[1731775043616,0.20519905,90772.0,90753.0,0.3608]
[1731775043617,0.055069,90754.0,90752.0,0.32574034]
[1731775043917,0.055069,90754.0,90753.0,6.155e-05]
[1731775044107,0.16019768,90754.0,90753.0,6.155e-05]
[1731775044312,0.16019768,90754.0,90753.0,0.11022828]
[1731775044513,0.16019768,90754.0,90753.0,6.155e-05]
[1731775045017,0.16019768,90754.0,90753.0,0.11025013]
[1731775045219,0.10512868,90754.0,90753.0,0.11025013]
[1731775045420,0.3608,90760.0,90758.0,0.055066]
[1731775046118,0.04528923,90764.0,90763.0,0.055063]
[1731775046419,0.415861,90766.0,90763.0,0.055063]
[1731775046823,0.415861,90766.0,90764.0,0.055062]
[1731775047021,0.055063,90764.0,90763.0,0.11017644]
[1731775047226,0.055069,90754.0,90753.0,6.155e-05]
[1731775047524,0.055066,90758.0,90754.0,0.11017644]
[1731775047830,0.10512868,90759.0,90753.0,6.155e-05]
[1731775048315,0.10512868,90759.0,90754.0,0.11018858]
[1731775048525,0.055068,90755.0,90754.0,0.11018858]
[1731775048823,0.055068,90755.0,90754.0,0.12051862]
[1731775052019,0.09984903,90755.0,90754.0,0.12051862]
[1731775052411,0.04478103,90755.0,90754.0,0.12051862]
[1731775052607,0.055067,90757.0,90754.0,0.12051862]
[1731775052813,0.10512868,90759.0,90755.0,0.01033004]
[1731775053012,0.10512868,90759.0,90754.0,0.11018858]
[1731775053013,0.1493519,90759.0,90758.0,0.055066]
[1731775053313,0.1493519,90759.0,90758.0,0.06539604]
[1731775053513,0.1493519,90759.0,90758.0,0.18109224]
[1731775054619,0.1493519,90759.0,90758.0,0.1707622]
[1731775055113,0.1493519,90759.0,90758.0,0.17396151]
[1731775055314,0.1493519,90759.0,90758.0,0.17396173]
[1731775055510,0.1493519,90759.0,90758.0,0.16525337]
[1731775055720,0.1493519,90759.0,90758.0,0.17420493]
[1731775056821,0.1493519,90759.0,90758.0,0.18453359]
[1731775057827,0.1493519,90759.0,90758.0,0.18453366]
[1731775058826,0.1493519,90759.0,90758.0,0.510274]
[1731775059627,0.08737935,90759.0,90758.0,0.510274]
[1731775059830,0.08737935,90759.0,90758.0,0.51084879]
[1731775060417,0.08737935,90759.0,90758.0,0.18453366]
[1731775061025,0.08737935,90759.0,90758.0,0.51086659]
[1731775061418,0.08737935,90759.0,90758.0,0.18453366]
[1731775062428,0.04422322,90759.0,90758.0,0.18462511]
[1731775062626,0.09036,90761.0,90758.0,0.12955911]
[1731775062828,0.09036,90761.0,90760.0,0.055065]
[1731775063028,0.09036,90761.0,90760.0,0.07443674]
[1731775063420,0.145424,90761.0,90760.0,0.12955425]
[1731775063936,0.18935008,90761.0,90760.0,0.12955425]
[1731775064117,0.55015008,90761.0,90760.0,0.01937174]
[1731775065031,0.55015008,90761.0,90760.0,0.00904308]
[1731775065920,0.55015008,90761.0,90760.0,0.00895304]
[1731775066930,0.55015008,90761.0,90760.0,0.01928348]
[1731775072732,0.45979008,90761.0,90760.0,0.01928348]
[1731775072934,0.46379008,90761.0,90760.0,0.01928348]
[1731775073522,0.055069,90754.0,90753.0,6.155e-05]
[1731775073726,0.16019768,90754.0,90753.0,6.155e-05]
[1731775073921,0.26532636,90754.0,90753.0,6.155e-05]
[1731775074122,0.055072,90748.0,90747.0,0.32620162]
[1731775074323,0.055075,90744.0,90743.0,0.32785422]
[1731775074530,0.055075,90744.0,90743.0,0.0016526]
[1731775074531,0.52100368,90744.0,90743.0,0.0016526]
[1731775075529,0.415875,90744.0,90743.0,0.0016526]
[1731775075730,0.3608,90744.0,90743.0,0.0016526]
[1731775075931,0.3608,90744.0,90743.0,0.32785422]
[1731775076144,0.04503316,90744.0,90743.0,0.32785422]
[1731775076337,0.05507,90752.0,90743.0,0.11185333]
[1731775076557,0.09028,90751.0,90750.0,0.055071]
[1731775076923,0.02830025,90751.0,90750.0,0.055071]
[1731775077253,0.02830025,90751.0,90750.0,0.16526687]
[1731775077431,0.00350845,90751.0,90750.0,0.16526687]
[1731775078233,0.04442183,90755.0,90750.0,0.4367561]
[1731775078526,0.09028,90756.0,90754.0,0.055069]
[1731775078738,0.10512868,90760.0,90758.0,0.055066]
[1731775079631,0.004,90761.0,90760.0,0.055065]
[1731775079942,0.09028,90764.0,90760.0,0.055065]
[1731775079943,0.004,90764.0,90763.0,0.055063]
[1731775080531,0.004,90764.0,90763.0,0.45695674]
[1731775080839,0.04431928,90769.0,90763.0,0.45695674]
[1731775080840,0.004,90769.0,90768.0,0.05506]
[1731775081042,0.004,90778.0,90777.0,0.055055]
[1731775081230,0.00565292,90781.0,90780.0,0.055053]
[1731775082041,0.06070492,90781.0,90780.0,0.16520881]
[1731775083656,0.06070492,90781.0,90780.0,0.181043]
[1731775084136,0.1107816,90781.0,90767.0,0.32623349]
[1731775084337,0.1107816,90781.0,90754.0,0.0051]
[1731775084338,0.05506,90769.0,90768.0,0.01583578]
[1731775084541,0.50614,90769.0,90768.0,0.0055081]
[1731775085544,0.50614,90769.0,90768.0,0.00895115]
[1731775085930,0.50614,90769.0,90768.0,0.01928014]
[1731775086942,0.50614,90769.0,90768.0,0.01032899]
[1731775087136,0.50614,90769.0,90768.0,0.01377202]
[1731775087738,0.551053,90769.0,90768.0,0.01377202]
[1731775088434,0.495993,90769.0,90768.0,0.06883202]
[1731775088635,0.055055,90777.0,90768.0,0.12394239]
[1731775088836,0.09028,90774.0,90769.0,0.01377202]
[1731775089150,0.09028,90774.0,90770.0,0.01377202]
[1731775089340,0.09028,90774.0,90771.0,0.01377202]
[1731775089541,0.09028,90774.0,90761.0,0.3608]
[1731775089542,0.09028,90774.0,90772.0,0.01377202]
[1731775089744,0.09028,90774.0,90773.0,0.01377202]
[1731775090146,0.09028,90774.0,90773.0,0.06882902]
[1731775090544,0.09428,90774.0,90773.0,0.06882902]
[1731775091256,0.149337,90774.0,90773.0,0.06882902]
[1731775091458,0.19477089,90774.0,90773.0,0.06882902]
[1731775092358,0.10449089,90774.0,90773.0,0.06882902]
[1731775093455,0.12652201,90774.0,90773.0,0.06882902]
[1731775094367,0.12652201,90774.0,90773.0,0.0192801]
[1731775094578,0.23165069,90774.0,90773.0,0.0192801]
[1731775094777,0.23165069,90774.0,90773.0,0.00895111]
[1731775095065,0.23165069,90774.0,90755.0,0.055068]
[1731775095066,0.055067,90757.0,90755.0,0.055068]
[1731775095266,0.055067,90757.0,90750.0,0.32623349]
[1731775095267,0.16019568,90757.0,90756.0,0.06539647]
[1731775095657,0.055071,90753.0,90752.0,0.05507]
[1731775095855,0.055071,90753.0,90752.0,0.06539955]
[1731775095856,0.16019968,90753.0,90752.0,0.06539955]
[1731775096056,0.16019968,90753.0,90752.0,0.01032955]
[1731775096057,0.16419968,90753.0,90752.0,0.01032955]
[1731775098370,0.055071,90750.0,90743.0,0.055075]
[1731775098557,0.506031,90750.0,90749.0,0.0119842]
[1731775100159,0.506031,90750.0,90749.0,0.0016529]
[1731775100772,0.506031,90750.0,90749.0,0.0119842]
[1731775105268,0.506031,90750.0,90749.0,0.0567249]
[1731775105269,0.415871,90750.0,90749.0,0.0567249]
[1731775105469,0.415871,90750.0,90749.0,0.0016529]
[1731775105868,0.415871,90750.0,90749.0,0.01198369]
[1731775106273,0.415871,90750.0,90749.0,0.0016529]
[1731775107173,0.415871,90750.0,90749.0,0.00509668]
[1731775107874,0.415871,90750.0,90749.0,0.0016529]
[1731775108066,0.415871,90750.0,90749.0,0.00509657]
[1731775108872,0.415871,90750.0,90749.0,0.02093753]
[1731775109075,0.506031,90750.0,90749.0,0.02093753]
[1731775110773,0.415871,90750.0,90749.0,0.02093753]
[1731775110984,0.415871,90750.0,90749.0,0.07600953]
[1731775111275,0.419871,90750.0,90749.0,0.07600953]
[1731775111872,0.419871,90750.0,90749.0,0.02093753]
[1731775114379,0.419871,90750.0,90749.0,0.01198396]
[1731775114677,0.419871,90750.0,90749.0,0.01060704]
[1731775114877,0.419871,90750.0,90749.0,0.00895414]
[1731775117172,0.419871,90750.0,90737.0,0.31602072]
[1731775117482,0.419871,90750.0,90738.0,0.00895399]
[1731775117483,0.16020668,90739.0,90738.0,0.00895399]
[1731775117683,0.16020668,90739.0,90738.0,0.01928547]
[1731775119983,0.16020668,90739.0,90738.0,0.01033148]
[1731775120180,0.16020668,90739.0,90738.0,0.01928563]
[1731775120581,0.16020668,90739.0,90738.0,0.28022735]
[1731775120981,0.16020668,90739.0,90738.0,0.01928563]
[1731775121480,0.16020668,90739.0,90738.0,0.28022735]
[1731775122182,0.16020668,90739.0,90738.0,0.01928563]
[1731775122377,0.16020668,90739.0,90738.0,0.28022735]
[1731775122580,0.16020668,90739.0,90738.0,0.01928563]
[1731775123185,0.16020668,90739.0,90738.0,0.28076118]
[1731775123386,0.16020668,90739.0,90738.0,0.01928563]
[1731775123895,0.16020668,90739.0,90738.0,0.01033148]
[1731775124095,0.16020668,90739.0,90738.0,0.01377554]
[1731775124789,0.20471407,90739.0,90738.0,0.01928576]
[1731775124986,0.20471407,90739.0,90738.0,0.34551925]
[1731775125582,0.20471407,90739.0,90738.0,0.01928576]
[1731775125782,0.20471407,90739.0,90738.0,0.01033148]
[1731775125998,0.20471407,90739.0,90738.0,0.01928559]
[1731775126291,0.20471407,90739.0,90738.0,0.01377537]
[1731775126788,0.20471407,90739.0,90738.0,0.27577236]
[1731775126985,0.20471407,90739.0,90738.0,0.00344389]
[1731775127192,0.20471407,90739.0,90738.0,0.01377689]
[1731775127489,0.20471407,90739.0,90738.0,0.01377736]
[1731775127892,0.20471407,90739.0,90738.0,0.00344436]
[1731775128282,0.20471407,90739.0,90738.0,0.01377746]
[1731775128894,0.20471407,90739.0,90738.0,0.00344436]
[1731775129706,0.22675474,90739.0,90738.0,0.00344436]
[1731775130291,0.58755474,90739.0,90738.0,0.00344436]
[1731775130886,0.00011427,90734.0,90730.0,0.25855263]
[1731775131188,0.46592868,90731.0,90717.0,0.3274364]
[1731775131389,0.16021968,90718.0,90716.0,0.1102068]
[1731775131599,0.10912868,90718.0,90711.0,0.32908992]
[1731775131784,0.055094,90713.0,90711.0,0.00165352]
[1731775131987,0.055094,90713.0,90712.0,0.01033479]
[1731775132695,0.055094,90713.0,90711.0,0.00165352]
[1731775132994,0.055094,90713.0,90712.0,0.00551214]
[1731775133197,0.055094,90713.0,90712.0,0.01584741]
[1731775134699,0.055094,90713.0,90712.0,0.00551214]
[1731775134899,0.055094,90713.0,90711.0,0.00165352]
[1731775135197,0.415894,90712.0,90711.0,0.00165352]
[1731775136094,0.415894,90712.0,90711.0,0.00551246]
[1731775136995,0.055101,90701.0,90700.0,0.1]
[1731775137203,0.25026968,90701.0,90700.0,0.1]
[1731775139895,0.24698393,90701.0,90700.0,0.1103359]
[1731775140500,0.19516868,90701.0,90700.0,0.1103359]
[1731775140703,0.10512868,90701.0,90700.0,0.1103359]
[1731775140893,0.16022468,90710.0,90709.0,0.055095]
[1731775141093,0.25030468,90710.0,90709.0,0.0654309]
[1731775141293,0.25030468,90710.0,90709.0,0.055095]
[1731775141601,0.19520868,90710.0,90709.0,0.055095]
[1731775142303,0.40591915,90712.0,90711.0,0.055095]
[1731775142304,0.00076,90712.0,90711.0,0.055095]
[1731775142495,0.09008,90716.0,90715.0,0.055092]
[1731775142694,0.09008,90716.0,90715.0,0.06542686]
[1731775142894,0.09008,90716.0,90715.0,0.17911357]
[1731775143192,0.3608,90730.0,90720.0,0.055089]
[1731775143193,0.10512868,90724.0,90720.0,0.055089]
[1731775143397,0.04491168,90723.0,90720.0,0.05853368]
[1731775143700,0.09008,90731.0,90720.0,0.05853368]
[1731775143701,0.45088,90738.0,90730.0,0.055083]
[1731775143999,0.04424006,90734.0,90733.0,0.055081]
[1731775144203,0.00011427,90734.0,90733.0,0.06885899]
[1731775145304,0.02215829,90734.0,90733.0,0.06885899]
[1731775145805,0.00011427,90734.0,90733.0,0.06885899]
[1731775146103,0.00011427,90734.0,90733.0,0.86017855]
[1731775146298,0.00411427,90734.0,90733.0,0.87051008]
[1731775146905,0.04509893,90744.0,90733.0,0.87050897]
[1731775147207,0.21725939,90747.0,90746.0,0.055074]
[1731775147504,0.19520868,90747.0,90746.0,0.0688491]
[1731775147701,0.19520868,90747.0,90746.0,0.05851757]
[1731775147904,0.19520868,90747.0,90746.0,0.16882684]
[1731775148100,0.09008,90747.0,90746.0,0.16882684]
[1731775148506,0.10512868,90754.0,90752.0,0.05507]
[1731775148700,0.02205071,90762.0,90753.0,0.0137751]
[1731775148891,0.02205071,90762.0,90750.0,0.3608]
[1731775148892,0.02205071,90762.0,90760.0,0.055065]
[1731775149095,0.10512868,90768.0,90764.0,0.055063]
[1731775149096,0.04420168,90767.0,90764.0,0.055063]
[1731775149308,0.04420168,90767.0,90764.0,0.0688381]
[1731775149507,0.19516868,90768.0,90764.0,0.0688381]
[1731775149712,0.19516868,90768.0,90764.0,0.17902729]
[1731775150023,0.3704,90784.0,90764.0,0.1790264]
[1731775150024,0.19516868,90776.0,90764.0,0.1790264]
[1731775150699,0.04550068,90774.0,90764.0,0.1790264]
[1731775151099,0.10512868,90776.0,90764.0,0.5095464]
[1731775151607,0.02203357,90773.0,90764.0,0.5095464]
[1731775152302,0.3704,90784.0,90764.0,0.5095464]
[1731775152303,0.10512868,90782.0,90764.0,0.5095464]
[1731775152505,0.10512868,90782.0,90764.0,0.50954213]
[1731775153200,0.10512868,90775.0,90764.0,0.50954213]
[1731775153530,0.055058,90772.0,90764.0,0.50954213]
[1731775153700,0.055058,90772.0,90764.0,0.17902213]
[1731775154309,0.055058,90772.0,90764.0,0.50954213]
[1731775154996,0.055058,90772.0,90764.0,0.50609945]
[1731775155198,0.055058,90772.0,90764.0,0.17902199]
[1731775155409,0.055058,90772.0,90764.0,0.50954199]
[1731775155599,0.055058,90772.0,90764.0,0.17902199]
[1731775155799,0.055058,90772.0,90764.0,0.50954199]
[1731775156212,0.055058,90772.0,90764.0,0.17902199]
[1731775156402,0.10523098,90765.0,90764.0,0.11363173]
[1731775156604,0.10523098,90765.0,90752.0,0.3608]
[1731775156913,0.055063,90764.0,90759.0,0.11017523]
[1731775157212,0.055064,90761.0,90760.0,0.00344264]
[1731775157602,0.16019268,90761.0,90760.0,0.00344264]
[1731775158113,0.0001023,90765.0,90763.0,0.055063]
[1731775158412,0.0001023,90765.0,90764.0,0.3642427]
[1731775158803,0.0001023,90765.0,90764.0,0.47442278]
[1731775160315,0.0001023,90765.0,90764.0,0.47993042]
[1731775160714,0.0001023,90765.0,90764.0,0.47648772]
[1731775161015,0.0001023,90765.0,90764.0,0.47992997]
[1731775161515,0.0001023,90765.0,90764.0,0.81044997]
[1731775161904,0.0001023,90765.0,90764.0,0.82077677]
[1731775162203,0.0001023,90765.0,90764.0,0.81526914]
[1731775163114,0.0001023,90765.0,90764.0,0.82077677]
[1731775163815,0.0001023,90765.0,90764.0,0.81182688]
[1731775164007,0.0001023,90765.0,90764.0,0.81044997]
[1731775164204,0.0001023,90765.0,90764.0,0.47992997]
[1731775164400,0.10523098,90765.0,90764.0,0.47992997]
[1731775165521,0.0001023,90765.0,90764.0,0.47992997]
[1731775166515,0.0001023,90765.0,90764.0,0.00894989]
[1731775166516,0.10523098,90765.0,90764.0,0.00894989]
[1731775167104,0.15046627,90765.0,90764.0,0.00894989]
[1731775168221,0.15046627,90765.0,90745.0,0.00165282]
[1731775168222,0.055073,90747.0,90745.0,0.00165282]
[1731775169019,0.10512868,90747.0,90733.0,0.06836948]
[1731775169222,0.16020968,90734.0,90733.0,0.06836948]
[1731775169410,0.25008968,90734.0,90733.0,0.06836948]
[1731775171519,0.055084,90730.0,90728.0,0.055084]
[1731775171717,0.055084,90730.0,90729.0,0.01033284]
[1731775171913,0.055084,90730.0,90729.0,0.12054571]
[1731775176415,0.055084,90730.0,90729.0,0.11021287]
[1731775176818,0.055084,90730.0,90723.0,0.055087]
[1731775176819,0.055084,90729.0,90723.0,0.055087]
[1731775177125,0.10512868,90726.0,90724.0,0.12055077]
[1731775177309,0.10512868,90726.0,90725.0,0.01033304]
[1731775178018,0.10512868,90726.0,90725.0,0.12055077]
[1731775180617,0.10512868,90726.0,90725.0,0.12399506]
[1731775181017,0.10512868,90726.0,90725.0,0.11366202]
[1731775182734,0.10512868,90726.0,90725.0,0.11366198]
[1731775183620,0.10512868,90726.0,90725.0,0.11366195]
[1731775183923,0.10512868,90726.0,90725.0,0.12399472]
[1731775186027,0.10512868,90726.0,90725.0,0.1239947]
[1731775186227,0.10512868,90726.0,90725.0,0.11366195]
[1731775187428,0.10512868,90726.0,90725.0,0.11366192]
[1731775188524,0.10512868,90726.0,90725.0,0.12399458]
[1731775188729,0.10512868,90726.0,90725.0,0.17908061]
[1731775189630,0.10512868,90726.0,90725.0,0.16874795]
[1731775190334,0.10512868,90726.0,90725.0,0.1790806]
[1731775193024,0.10512868,90726.0,90725.0,0.16874795]
[1731775193231,0.10512868,90726.0,90725.0,0.17908052]
[1731775193734,0.055083,90731.0,90730.0,0.055083]
[1731775193927,0.3608,90737.0,90736.0,0.05508]
[1731775194232,0.055077,90741.0,90740.0,0.055077]
[1731775194438,0.055077,90741.0,90740.0,0.05852122]
[1731775194633,0.055077,90741.0,90740.0,0.06540827]
[1731775194934,0.055077,90741.0,90740.0,0.17562479]
[1731775195926,0.09987245,90741.0,90740.0,0.12054779]
[1731775202337,0.055077,90741.0,90740.0,0.12054779]
[1731775202532,0.055077,90741.0,90740.0,0.44798419]
[1731775202734,0.055077,90741.0,90740.0,0.12054779]
[1731775203542,0.055077,90741.0,90735.0,0.07729438]
[1731775203837,0.055086,90725.0,90724.0,0.39154316]
[1731775204029,0.10512868,90728.0,90719.0,0.11020437]
[1731775204234,0.08976,90730.0,90722.0,0.3933979]
[1731775204432,0.3608,90723.0,90718.0,0.50360531]
[1731775204639,0.16021868,90719.0,90718.0,0.11020741]
[1731775204826,0.10512868,90719.0,90715.0,0.3608]
[1731775205135,0.055091,90718.0,90715.0,0.3608]
[1731775205339,0.10512868,90719.0,90716.0,0.11023292]
[1731775205340,0.055091,90717.0,90716.0,0.11023292]
[1731775206437,0.055097,90708.0,90706.0,0.39505134]
[1731775206739,0.055097,90708.0,90706.0,0.00165344]
[1731775206939,0.055097,90708.0,90707.0,0.11023352]
[1731775208741,0.09821702,90709.0,90707.0,0.11023352]
[1731775209431,0.055097,90708.0,90707.0,0.11023352]
[1731775211939,0.055097,90708.0,90706.0,0.00165344]
[1731775211940,0.144897,90708.0,90706.0,0.00165344]
[1731775212156,0.3608,90707.0,90706.0,0.00165344]
[1731775212346,0.3608,90707.0,90700.0,0.1]
[1731775212535,0.16022968,90701.0,90700.0,0.1]
[1731775212735,0.16022968,90701.0,90700.0,0.10004976]
[1731775215240,0.05511,90686.0,90680.0,0.055113]
[1731775215541,0.26535836,90701.0,90681.0,0.01033673]
[1731775215542,0.055112,90683.0,90681.0,0.01033673]
[1731775215740,0.055112,90683.0,90682.0,0.01033673]
[1731775216431,0.055112,90683.0,90682.0,0.11027486]
[1731775216636,0.055112,90683.0,90682.0,0.12061289]
[1731775216834,0.055112,90683.0,90682.0,0.01033803]
[1731775217046,0.055112,90683.0,90682.0,0.12061289]
[1731775217628,0.055112,90683.0,90682.0,0.11027486]
[1731775217832,0.055112,90683.0,90682.0,0.12061273]
[1731775218042,0.09963586,90683.0,90682.0,0.01033787]
[1731775218248,0.09963586,90683.0,90682.0,0.12061273]
[1731775218543,0.10512868,90692.0,90682.0,0.12061273]
[1731775218840,0.144747,90691.0,90686.0,0.3608]
[1731775219029,0.055108,90689.0,90687.0,0.01033787]
[1731775219233,0.055113,90682.0,90675.0,0.055116]
[1731775219431,0.055113,90682.0,90663.0,0.08968]
[1731775219642,0.10512868,90688.0,90681.0,0.3608]
[1731775219847,0.05511,90687.0,90681.0,0.3608]
[1731775220340,0.05511,90687.0,90682.0,0.11027303]
[1731775220542,0.05511,90687.0,90683.0,0.01033725]
[1731775220731,0.055111,90684.0,90682.0,0.11027303]
[1731775220939,0.055111,90684.0,90645.0,0.01033659]
[1731775220940,0.055112,90683.0,90666.0,0.055122]
[1731775221242,0.3608,90689.0,90658.0,0.3608]
[1731775221243,0.10512868,90680.0,90658.0,0.45048]
[1731775221445,0.055116,90677.0,90672.0,0.055118]
[1731775221737,0.055116,90676.0,90672.0,0.055118]
[1731775222243,0.055116,90676.0,90673.0,0.11027425]
[1731775222435,0.10512868,90674.0,90673.0,0.11027425]
[1731775222641,0.10512868,90674.0,90673.0,0.12061261]
[1731775222844,0.10512868,90674.0,90673.0,0.01033836]
[1731775223234,0.10512868,90674.0,90673.0,0.12062355]
[1731775223436,0.10512868,90674.0,90669.0,0.00165427]
[1731775223744,0.05512,90670.0,90669.0,0.00165427]
[1731775225742,0.055124,90663.0,90659.0,0.055126]
[1731775225933,0.055125,90662.0,90659.0,0.055126]
[1731775226137,0.055125,90662.0,90660.0,0.11029067]
[1731775227643,0.10512868,90663.0,90661.0,0.01033991]
[1731775227842,0.10512868,90663.0,90662.0,0.01033991]
[1731775228840,0.148992,90663.0,90662.0,0.01033991]
[1731775232146,0.148992,90663.0,90662.0,0.06546491]
[1731775232644,0.04386332,90663.0,90662.0,0.16542418]
[1731775232842,0.144801,90669.0,90666.0,0.055122]
[1731775233347,0.08968,90669.0,90668.0,0.055121]
[1731775233847,0.08968,90670.0,90668.0,0.055121]
[1731775234247,0.08968,90670.0,90668.0,0.1654141]
[1731775234551,0.08968,90670.0,90669.0,0.01033929]
[1731775235140,0.08968,90670.0,90669.0,0.12063056]
[1731775237152,0.1448,90670.0,90669.0,0.12063056]
[1731775238346,0.1448,90670.0,90669.0,0.01033929]
[1731775238540,0.055132,90650.0,90641.0,0.415937]
[1731775238741,0.10512868,90653.0,90645.0,0.00557067]
[1731775238935,0.10512868,90653.0,90650.0,0.11029067]
[1731775239146,0.10512868,90653.0,90643.0,0.05679079]
[1731775239336,0.16026468,90644.0,90643.0,0.00165479]
[1731775239745,0.16026468,90644.0,90643.0,0.11196736]
[1731775240641,0.24994468,90644.0,90643.0,0.11196736]
[1731775240840,0.24994468,90644.0,90643.0,0.00165479]
[1731775241750,0.29370366,90644.0,90643.0,0.00165479]
[1731775242249,0.29370366,90644.0,90643.0,0.0051024]
[1731775242754,0.29370366,90644.0,90643.0,0.0034476]
[1731775243147,0.055147,90625.0,90624.0,0.36245505]
[1731775243353,0.055147,90625.0,90624.0,0.00165505]
[1731775243652,0.16027568,90625.0,90624.0,0.00165505]
[1731775243845,0.10512868,90625.0,90624.0,0.11197735]